bitfinex-derivatives/quotes_BTCF0:USTF0_20241021
["timestamp","ask_amount","ask_price","bid_price","bid_amount"]
[1729483015564,0.01207201,68973.0,68972.0,0.68465964]
[1729483015858,0.01207201,68973.0,68972.0,0.68665964]
[1729483015859,0.01607201,68973.0,68972.0,0.68665964]
[1729483016957,0.05158191,68973.0,68972.0,0.57615516]
[1729483017358,0.05158191,68973.0,68972.0,0.21535516]
[1729483017557,0.05158191,68973.0,68972.0,0.57615516]
[1729483018762,0.05158191,68973.0,68972.0,0.21535516]
[1729483019152,0.05158191,68973.0,68972.0,0.57615516]
[1729483019454,0.05158191,68973.0,68972.0,0.21535516]
[1729483020257,0.05158191,68973.0,68972.0,0.57615516]
[1729483020767,0.05158191,68973.0,68972.0,0.21535516]
[1729483020971,0.05158191,68973.0,68972.0,0.57615516]
[1729483021366,0.02157191,68973.0,68972.0,0.57615516]
[1729483022162,0.01318328,68978.0,68972.0,0.57615516]
[1729483022163,0.01318328,68978.0,68972.0,0.50364416]
[1729483022356,0.01318328,68978.0,68973.0,0.07251]
[1729483023567,0.01662075,68974.0,68973.0,0.07251]
[1729483023967,0.01318328,68978.0,68973.0,0.11050046]
[1729483024263,0.01318328,68978.0,68976.0,0.072507]
[1729483024463,0.01318328,68978.0,68976.0,0.18300746]
[1729483025567,0.01318328,68978.0,68976.0,0.25591453]
[1729483025765,0.01318328,68978.0,68976.0,0.36995453]
[1729483025972,0.01318328,68978.0,68976.0,0.187547]
[1729483026163,0.01318328,68978.0,68976.0,0.188547]
[1729483027366,0.01318328,68978.0,68976.0,0.549347]
[1729483028271,0.04883039,68977.0,68976.0,0.549347]
[1729483029963,0.04883039,68977.0,68976.0,0.188547]
[1729483030166,0.04883039,68977.0,68976.0,0.549347]
[1729483030973,0.04883039,68977.0,68976.0,0.188547]
[1729483031475,0.04883039,68977.0,68976.0,0.074507]
[1729483031683,0.04883039,68977.0,68976.0,0.188547]
[1729483032069,0.12885134,68977.0,68976.0,0.188547]
[1729483039191,0.04883039,68977.0,68976.0,0.188547]
[1729483039577,0.04883039,68977.0,68976.0,0.11604]
[1729483047086,0.1288522,68977.0,68976.0,0.002]
[1729483054187,0.04883039,68977.0,68976.0,0.002]
[1729483059588,0.04883039,68977.0,68976.0,0.074507]
[1729483059983,0.01553039,68977.0,68976.0,0.074507]
[1729483062384,0.09555066,68977.0,68976.0,0.074507]
[1729483065197,0.09555066,68977.0,68976.0,0.435307]
[1729483065495,0.09555066,68977.0,68976.0,0.549107]
[1729483066584,0.09555066,68977.0,68976.0,0.435307]
[1729483068491,0.05104079,68977.0,68976.0,0.435307]
[1729483069398,0.01553039,68977.0,68976.0,0.435307]
[1729483072886,0.01553039,68977.0,68976.0,0.467207]
[1729483080499,0.01553039,68977.0,68976.0,0.51037169]
[1729483081400,0.01553039,68977.0,68976.0,0.467207]
[1729483081902,0.01553039,68977.0,68976.0,0.51037051]
[1729483082608,0.01553039,68977.0,68976.0,0.467207]
[1729483083502,0.01553039,68977.0,68976.0,0.3947]
[1729483084410,0.0510402,68977.0,68976.0,0.3947]
[1729483084801,0.09554934,68977.0,68976.0,0.3947]
[1729483085402,0.09554934,68977.0,68976.0,0.0339]
[1729483085598,0.09554934,68977.0,68976.0,0.3947]
[1729483089810,0.09554933,68977.0,68976.0,0.3947]
[1729483091407,0.01553039,68977.0,68976.0,0.3947]
[1729483092300,0.01553039,68977.0,68976.0,0.002]
[1729483092502,0.07933039,68977.0,68976.0,0.002]
[1729483092807,0.07933039,68977.0,68976.0,0.05952343]
[1729483093000,0.07933039,68977.0,68976.0,0.002]
[1729483099523,0.15936021,68977.0,68976.0,0.002]
[1729483106507,0.07933039,68977.0,68976.0,0.002]
[1729483110812,0.04633039,68977.0,68976.0,0.002]
[1729483112719,0.01553039,68977.0,68976.0,0.002]
[1729483114724,0.09555493,68977.0,68976.0,0.002]
[1729483119815,0.09555502,68977.0,68976.0,0.002]
[1729483121426,0.01553039,68977.0,68976.0,0.002]
[1729483127628,0.01553039,68977.0,68976.0,0.04509835]
[1729483135235,0.01553039,68977.0,68976.0,0.002]
[1729483135417,0.01553039,68977.0,68976.0,0.04510215]
[1729483135834,0.01553039,68977.0,68976.0,0.002]
[1729483136728,0.05104245,68977.0,68976.0,0.002]
[1729483136939,0.09555441,68977.0,68976.0,0.002]
[1729483139430,0.05104245,68977.0,68976.0,0.002]
[1729483144640,0.01553039,68977.0,68976.0,0.002]
[1729483149443,0.01553039,68977.0,68976.0,0.04513063]
[1729483149942,0.01553039,68977.0,68976.0,0.002]
[1729483150241,0.01553039,68977.0,68976.0,0.074507]
[1729483150433,0.01553039,68977.0,68976.0,0.16403043]
[1729483150833,0.01553039,68977.0,68976.0,0.106507]
[1729483151239,0.01553039,68977.0,68976.0,0.16399826]
[1729483151538,0.01553039,68977.0,68976.0,0.106507]
[1729483151941,0.09554873,68977.0,68976.0,0.106507]
[1729483152536,0.17504695,68977.0,68976.0,0.106507]
[1729483152940,0.21055649,68977.0,68976.0,0.106507]
[1729483153145,0.25506529,68977.0,68976.0,0.106507]
[1729483153847,0.09554873,68977.0,68976.0,0.106507]
[1729483156933,0.17499621,68977.0,68976.0,0.106507]
[1729483157238,0.21050575,68977.0,68976.0,0.106507]
[1729483157434,0.25501455,68977.0,68976.0,0.106507]
[1729483157848,0.09554873,68977.0,68976.0,0.106507]
[1729483159539,0.01553039,68977.0,68976.0,0.106507]
[1729483160857,0.01553039,68977.0,68976.0,0.467307]
[1729483166648,0.01553039,68977.0,68976.0,0.47839014]
[1729483167157,0.01553039,68977.0,68976.0,0.435307]
[1729483171153,0.01553039,68977.0,68976.0,0.3628]
[1729483171453,0.01553039,68977.0,68976.0,0.47568]
[1729483172952,0.01553039,68977.0,68976.0,0.11488]
[1729483173745,0.01553039,68977.0,68976.0,0.47568]
[1729483174149,0.01553039,68977.0,68976.0,0.11488]
[1729483174352,0.01553039,68977.0,68976.0,0.47568]
[1729483174656,0.05104003,68977.0,68976.0,0.11488]
[1729483174846,0.01553039,68977.0,68976.0,0.47568]
[1729483175252,0.09554895,68977.0,68976.0,0.47568]
[1729483176966,0.09554895,68977.0,68976.0,0.11488]
[1729483177150,0.09554895,68977.0,68976.0,0.47568]
[1729483178152,0.09554899,68977.0,68976.0,0.47568]
[1729483181556,0.01553039,68977.0,68976.0,0.47568]
[1729483190264,0.09554758,68977.0,68976.0,0.47568]
[1729483191358,0.17512142,68977.0,68976.0,0.47568]
[1729483191567,0.09554758,68977.0,68976.0,0.47568]
[1729483196663,0.09554758,68977.0,68976.0,0.53321298]
[1729483196664,0.01553039,68977.0,68976.0,0.53321298]
[1729483197469,0.01553039,68977.0,68976.0,0.47568]
[1729483197671,0.01553039,68977.0,68976.0,0.53321903]
[1729483200480,0.01553039,68977.0,68976.0,0.47568]
[1729483201972,0.04833039,68977.0,68976.0,0.4754]
[1729483205181,0.12835094,68977.0,68976.0,0.4754]
[1729483205568,0.09555094,68977.0,68976.0,0.47516]
[1729483206388,0.09555096,68977.0,68976.0,0.47516]
[1729483209084,0.09555096,68977.0,68976.0,0.3628]
[1729483209278,0.09555096,68977.0,68976.0,0.47516]
[1729483210092,0.05104092,68977.0,68976.0,0.47516]
[1729483211388,0.0955509,68977.0,68976.0,0.47516]
[1729483211586,0.01553039,68977.0,68976.0,0.47516]
[1729483214483,0.01553039,68977.0,68976.0,0.11436]
[1729483214680,0.01553039,68977.0,68976.0,0.47516]
[1729483219588,0.01553039,68977.0,68976.0,0.71965617]
[1729483219791,0.01056883,68983.0,68976.0,0.71965617]
[1729483219987,0.01056883,68983.0,68977.0,0.24449617]
[1729483220188,0.01056883,68983.0,68978.0,0.24449617]
[1729483220389,0.01056883,68983.0,68979.0,0.24449617]
[1729483220589,0.01056883,68983.0,68980.0,0.24449617]
[1729483220797,0.01056883,68983.0,68981.0,0.24449617]
[1729483220995,0.01056883,68983.0,68982.0,0.11050847]
[1729483221595,0.01056883,68983.0,68982.0,0.24363166]
[1729483221996,0.01056883,68983.0,68982.0,0.11050847]
[1729483222296,0.01056883,68983.0,68982.0,0.19674766]
[1729483222990,0.01056883,68983.0,68982.0,0.19774766]
[1729483223488,0.01056883,68983.0,68982.0,0.19874766]
[1729483223896,0.01056883,68983.0,68982.0,0.11250847]
[1729483224092,0.01056883,68983.0,68982.0,0.19874766]
[1729483225491,0.01056883,68983.0,68982.0,0.11250847]
[1729483226797,0.04608084,68983.0,68982.0,0.002]
[1729483230204,0.03551201,68983.0,68982.0,0.002]
[1729483231404,0.01808612,68984.0,68982.0,0.002]
[1729483232497,0.01808612,68984.0,68982.0,0.001]
[1729483232697,0.01808612,68984.0,68982.0,0.002]
[1729483234396,0.03551091,68983.0,68982.0,0.002]
[1729483234811,0.01808612,68984.0,68982.0,0.002]
[1729483248920,0.03551065,68983.0,68982.0,0.002]
[1729483249708,0.03551065,68983.0,68982.0,0.07385478]
[1729483250018,0.01808612,68984.0,68982.0,0.07385478]
[1729483250220,0.01808612,68984.0,68982.0,0.07285478]
[1729483250411,0.01808612,68984.0,68982.0,0.07385478]
[1729483250611,0.01808612,68984.0,68982.0,0.002]
[1729483251019,0.01808612,68984.0,68982.0,0.001]
[1729483251211,0.01808612,68984.0,68982.0,0.002]
[1729483252418,0.01808612,68984.0,68982.0,0.001]
[1729483252716,0.01808612,68984.0,68982.0,0.002]
[1729483253018,0.09058412,68984.0,68982.0,0.002]
[1729483253413,0.0639,68983.0,68982.0,0.002]
[1729483254812,0.0639,68983.0,68980.0,0.02658606]
[1729483255011,0.0639,68983.0,68977.0,0.43265478]
[1729483255219,0.0942,68983.0,68982.0,0.002]
[1729483255713,0.0942,68983.0,68963.0,0.36798581]
[1729483255714,0.072503,68980.0,68979.0,0.05759533]
[1729483255914,0.433303,68980.0,68978.0,0.04320398]
[1729483256112,0.072505,68978.0,68976.0,0.04320398]
[1729483256307,0.072507,68976.0,68975.0,0.04320398]
[1729483256613,0.072507,68976.0,68974.0,0.04320398]
[1729483257011,0.072507,68976.0,68975.0,0.04320398]
[1729483257520,0.072507,68976.0,68974.0,0.04320398]
[1729483258528,0.072507,68976.0,68973.0,0.04320398]
[1729483258826,0.02654288,68978.0,68973.0,0.04320398]
[1729483258827,0.3608,68974.0,68973.0,0.04320398]
[1729483260422,0.3608,68974.0,68972.0,0.04320398]
[1729483260625,0.0322,68973.0,68972.0,0.04320398]
[1729483261343,0.0322,68973.0,68968.0,0.02777729]
[1729483261541,0.0322,68973.0,68972.0,0.04314894]
[1729483262348,0.0332,68973.0,68972.0,0.04314894]
[1729483263041,0.072512,68971.0,68969.0,0.04314894]
[1729483263538,0.072512,68971.0,68968.0,0.07092623]
[1729483263928,0.072512,68971.0,68969.0,0.04314894]
[1729483264240,0.072512,68971.0,68968.0,0.07092623]
[1729483264636,0.072512,68971.0,68969.0,0.04314894]
[1729483264837,0.072512,68971.0,68968.0,0.02777729]
[1729483265445,0.073512,68971.0,68968.0,0.02777729]
[1729483271841,0.03722408,68971.0,68968.0,0.02777729]
[1729483279045,0.001,68971.0,68968.0,0.02777729]
[1729483279356,0.072514,68969.0,68968.0,0.02777729]
[1729483279545,0.072514,68969.0,68968.0,0.00217481]
[1729483281149,0.073514,68969.0,68968.0,0.00217481]
[1729483286852,0.073514,68969.0,68968.0,0.11271775]
[1729483288053,0.073514,68969.0,68968.0,0.00217481]
[1729483288256,0.073514,68969.0,68968.0,0.11271667]
[1729483288456,0.073514,68969.0,68968.0,0.18472864]
[1729483289158,0.073514,68969.0,68968.0,0.11271667]
[1729483289457,0.073514,68969.0,68968.0,0.18472583]
[1729483290254,0.073514,68969.0,68968.0,0.11271667]
[1729483290453,0.073514,68969.0,68968.0,0.18472285]
[1729483290659,0.073514,68969.0,68968.0,0.11271667]
[1729483291766,0.001,68969.0,68963.0,0.02601036]
[1729483291960,0.001,68969.0,68967.0,0.07200335]
[1729483292163,0.072519,68965.0,68959.0,0.15876419]
[1729483292363,0.07252,68964.0,68960.0,0.11054213]
[1729483292664,0.07252,68964.0,68961.0,0.11054213]
[1729483292861,0.07252,68964.0,68962.0,0.11054213]
[1729483293061,0.07252,68964.0,68963.0,0.11054213]
[1729483294351,0.07252,68964.0,68963.0,0.11354213]
[1729483294958,0.07252,68964.0,68963.0,0.003]
[1729483296263,0.07252,68964.0,68963.0,0.006]
[1729483301961,0.07252,68964.0,68963.0,0.07799857]
[1729483302268,0.07252,68964.0,68963.0,0.1885424]
[1729483302960,0.07252,68964.0,68963.0,0.07799857]
[1729483303464,0.07252,68964.0,68963.0,0.006]
[1729483303864,0.43332,68964.0,68963.0,0.006]
[1729483315477,0.43332,68964.0,68963.0,0.07803229]
[1729483315680,0.43332,68964.0,68963.0,0.18857883]
[1729483315873,0.43332,68964.0,68963.0,0.006]
[1729483316177,0.43332,68964.0,68963.0,0.18858018]
[1729483316575,0.43332,68964.0,68963.0,0.11654789]
[1729483316974,0.43332,68964.0,68963.0,0.006]
[1729483320976,0.46884584,68964.0,68963.0,0.006]
[1729483321169,0.46884584,68964.0,68950.0,0.104534]
[1729483321170,0.072528,68956.0,68950.0,0.104534]
[1729483321770,0.3608,68964.0,68950.0,0.032]
[1729483322075,0.07253,68954.0,68950.0,0.032]
[1729483322981,0.07253,68954.0,68950.0,0.046]
[1729483323378,0.3608,68956.0,68950.0,0.07248462]
[1729483323379,0.072531,68953.0,68950.0,0.07248462]
[1729483323884,0.072531,68953.0,68950.0,0.08648462]
[1729483324083,0.34622156,68956.0,68951.0,0.24387594]
[1729483324384,0.072531,68953.0,68952.0,0.24387594]
[1729483324586,0.073531,68953.0,68952.0,0.24387594]
[1729483325085,0.072531,68953.0,68952.0,0.24387594]
[1729483325583,0.072531,68953.0,68952.0,0.11055641]
[1729483325977,0.072531,68953.0,68952.0,0.24321233]
[1729483326176,0.072531,68953.0,68952.0,0.11055641]
[1729483326792,0.072531,68953.0,68952.0,0.13855641]
[1729483328478,0.072531,68953.0,68952.0,0.028]
[1729483328681,0.072531,68953.0,68952.0,0.22497028]
[1729483329476,0.072531,68953.0,68952.0,0.13856072]
[1729483331087,0.072531,68953.0,68952.0,0.20957166]
[1729483331490,0.072531,68953.0,68952.0,0.09901094]
[1729483331986,0.072531,68953.0,68952.0,0.027]
[1729483332399,0.072531,68953.0,68952.0,0.013]
[1729483332585,0.072531,68953.0,68952.0,0.025]
[1729483338985,0.072531,68953.0,68952.0,0.20758318]
[1729483339292,0.072531,68953.0,68952.0,0.09701094]
[1729483340192,0.072531,68953.0,68952.0,0.20758344]
[1729483341095,0.072531,68953.0,68952.0,0.09701094]
[1729483342386,0.072531,68953.0,68952.0,0.025]
[1729483342691,0.072531,68953.0,68952.0,0.20758208]
[1729483342987,0.072531,68953.0,68952.0,0.20758393]
[1729483343597,0.072531,68953.0,68952.0,0.20756736]
[1729483343784,0.072531,68953.0,68952.0,0.13557299]
[1729483345488,0.102531,68953.0,68952.0,0.13557299]
[1729483347095,0.102531,68953.0,68952.0,0.025]
[1729483348387,0.03,68953.0,68952.0,0.05763996]
[1729483348590,0.03,68953.0,68952.0,0.05764728]
[1729483348792,0.03,68953.0,68952.0,0.05764799]
[1729483348999,0.07254,68945.0,68942.0,0.08640678]
[1729483349190,0.3608,68954.0,68933.0,0.0977]
[1729483349191,0.3608,68948.0,68944.0,0.08640678]
[1729483349392,0.3608,68948.0,68945.0,0.17547688]
[1729483349698,0.3608,68948.0,68946.0,0.19698366]
[1729483349891,0.3608,68948.0,68947.0,0.11057688]
[1729483351796,0.3618,68948.0,68947.0,0.11057688]
[1729483352099,0.3628,68948.0,68947.0,0.11057688]
[1729483352701,0.3628,68948.0,68947.0,0.11657688]
[1729483354203,0.3628,68948.0,68947.0,0.006]
[1729483359102,0.39833202,68948.0,68947.0,0.006]
[1729483362105,0.3628,68948.0,68947.0,0.006]
[1729483363201,0.3628,68948.0,68947.0,0.04929645]
[1729483364199,0.3628,68948.0,68947.0,0.0492977]
[1729483364508,0.3628,68948.0,68947.0,0.006]
[1729483369207,0.44286807,68948.0,68947.0,0.006]
[1729483369902,0.44286814,68948.0,68947.0,0.006]
[1729483370105,0.4428682,68948.0,68947.0,0.006]
[1729483372703,0.4428682,68948.0,68947.0,0.03201904]
[1729483373112,0.39833167,68948.0,68947.0,0.03201904]
[1729483375008,0.3628,68948.0,68947.0,0.03201904]
[1729483375308,0.39833169,68948.0,68947.0,0.03201904]
[1729483377108,0.3628,68948.0,68947.0,0.03201904]
[1729483377612,0.435336,68948.0,68947.0,0.03201904]
[1729483378412,0.074536,68948.0,68947.0,0.03201904]
[1729483379806,0.074536,68948.0,68947.0,0.08970394]
[1729483382507,0.074536,68948.0,68947.0,0.03201904]
[1729483383106,0.074536,68948.0,68947.0,0.08970394]
[1729483383617,0.074536,68948.0,68947.0,0.03201904]
[1729483383816,0.074536,68948.0,68947.0,0.08970394]
[1729483384015,0.074536,68948.0,68947.0,0.03201904]
[1729483384203,0.1100685,68948.0,68947.0,0.03201904]
[1729483385807,0.15460571,68948.0,68947.0,0.03201904]
[1729483386306,0.15460597,68948.0,68947.0,0.03201904]
[1729483387311,0.31419516,68948.0,68947.0,0.03201904]
[1729483389512,0.366237,68948.0,68947.0,0.03201904]
[1729483389917,0.26965764,68948.0,68947.0,0.03201904]
[1729483390211,0.11006845,68948.0,68947.0,0.03201904]
[1729483391318,0.11006856,68948.0,68947.0,0.03201904]
[1729483392217,0.074536,68948.0,68947.0,0.08970394]
[1729483395819,0.074536,68948.0,68947.0,0.03201904]
[1729483401621,0.074536,68948.0,68947.0,0.07536118]
[1729483401822,0.074536,68948.0,68947.0,0.03201904]
[1729483403127,0.435336,68948.0,68947.0,0.03201904]
[1729483403717,0.074536,68948.0,68947.0,0.03201904]
[1729483404029,0.435336,68948.0,68947.0,0.03201904]
[1729483404828,0.074536,68948.0,68947.0,0.03201904]
[1729483405013,0.435336,68948.0,68947.0,0.03201904]
[1729483405819,0.074536,68948.0,68947.0,0.03201904]
[1729483406022,0.435336,68948.0,68947.0,0.03201904]
[1729483406426,0.074536,68948.0,68947.0,0.03201904]
[1729483406727,0.435336,68948.0,68947.0,0.03201904]
[1729483406921,0.074536,68948.0,68947.0,0.03201904]
[1729483407324,0.435336,68948.0,68947.0,0.03201904]
[1729483407528,0.51540718,68948.0,68947.0,0.03201904]
[1729483408124,0.15460718,68948.0,68947.0,0.03201904]
[1729483408331,0.51540718,68948.0,68947.0,0.03201904]
[1729483409421,0.51540718,68948.0,68947.0,0.006]
[1729483409627,0.44287118,68948.0,68935.0,0.11172]
[1729483409935,0.072542,68943.0,68937.0,0.12816363]
[1729483410233,0.08007118,68942.0,68937.0,0.12816363]
[1729483410429,0.072542,68943.0,68937.0,0.12816363]
[1729483410430,0.08007118,68941.0,68937.0,0.12816363]
[1729483410632,0.03553299,68940.0,68937.0,0.12816363]
[1729483410823,0.03553299,68939.0,68937.0,0.12816363]
[1729483411023,0.03553299,68938.0,68937.0,0.15216363]
[1729483411325,0.03553274,68938.0,68937.0,0.15216363]
[1729483412220,0.03653274,68938.0,68937.0,0.15216363]
[1729483412627,0.03653274,68938.0,68937.0,0.14616363]
[1729483413834,0.03753274,68938.0,68937.0,0.14116363]
[1729483414530,0.072542,68943.0,68937.0,0.38464895]
[1729483414735,0.072542,68943.0,68940.0,0.08668253]
[1729483414949,0.072542,68943.0,68941.0,0.11057547]
[1729483415139,0.072542,68943.0,68940.0,0.08668253]
[1729483415140,0.072542,68943.0,68942.0,0.11057547]
[1729483415836,0.074542,68943.0,68942.0,0.11057547]
[1729483416538,0.073542,68943.0,68942.0,0.11057547]
[1729483416723,0.074542,68943.0,68942.0,0.11857547]
[1729483417337,0.074542,68943.0,68942.0,0.12957547]
[1729483421241,0.074542,68943.0,68942.0,0.12957541]
[1729483431838,0.074542,68943.0,68942.0,0.019]
[1729483434946,0.073542,68943.0,68942.0,0.008]
[1729483435144,0.073542,68943.0,68942.0,0.013]
[1729483435944,0.072542,68943.0,68942.0,0.01]
[1729483437046,0.433338,68946.0,68942.0,0.01]
[1729483438536,0.433338,68946.0,68942.0,0.005]
[1729483438744,0.433338,68946.0,68942.0,0.007]
[1729483439242,0.433338,68946.0,68942.0,0.004]
[1729483441450,0.433338,68946.0,68945.0,0.05778643]
[1729483442647,0.433338,68946.0,68945.0,0.05978643]
[1729483443852,0.433338,68946.0,68945.0,0.06178643]
[1729483444965,0.51340807,68946.0,68945.0,0.004]
[1729483446651,0.15260605,68946.0,68945.0,0.004]
[1729483448145,0.51340605,68946.0,68945.0,0.004]
[1729483450947,0.15260605,68946.0,68945.0,0.004]
[1729483451159,0.51340605,68946.0,68945.0,0.004]
[1729483451657,0.55794455,68946.0,68945.0,0.004]
[1729483451860,0.5134081,68946.0,68945.0,0.004]
[1729483452052,0.433338,68946.0,68945.0,0.06178643]
[1729483454055,0.463338,68946.0,68945.0,0.004]
[1729483455149,0.433338,68946.0,68945.0,0.004]
[1729483462051,0.45925978,68946.0,68945.0,0.004]
[1729483464766,0.53933269,68946.0,68945.0,0.004]
[1729483465861,0.17853269,68946.0,68945.0,0.004]
[1729483466065,0.53933269,68946.0,68945.0,0.004]
[1729483466466,0.17853269,68946.0,68945.0,0.004]
[1729483466661,0.53933269,68946.0,68945.0,0.004]
[1729483466861,0.45925978,68946.0,68945.0,0.004]
[1729483467569,0.433338,68946.0,68945.0,0.004]
[1729483472164,0.072538,68946.0,68945.0,0.004]
[1729483472363,0.433338,68946.0,68945.0,0.004]
[1729483474872,0.46887147,68946.0,68945.0,0.004]
[1729483477267,0.46887146,68946.0,68945.0,0.004]
[1729483478274,0.10807146,68946.0,68945.0,0.004]
[1729483478470,0.46887146,68946.0,68945.0,0.004]
[1729483479070,0.51341025,68946.0,68945.0,0.004]
[1729483481770,0.433338,68946.0,68945.0,0.004]
[1729483493091,0.463338,68946.0,68945.0,0.004]
[1729483496291,0.433338,68946.0,68945.0,0.004]
[1729483496875,0.51341053,68946.0,68945.0,0.004]
[1729483501393,0.15261053,68946.0,68945.0,0.004]
[1729483501597,0.51341053,68946.0,68945.0,0.004]
[1729483504387,0.67309046,68946.0,68945.0,0.004]
[1729483504587,0.72513396,68946.0,68945.0,0.004]
[1729483504788,0.56545403,68946.0,68945.0,0.004]
[1729483505012,0.433338,68946.0,68945.0,0.004]
[1729483505191,0.433338,68946.0,68945.0,0.04734985]
[1729483506386,0.433338,68946.0,68945.0,0.004]
[1729483506896,0.433338,68946.0,68945.0,0.04734985]
[1729483507198,0.433338,68946.0,68945.0,0.004]
[1729483507590,0.433338,68946.0,68945.0,0.04734985]
[1729483511990,0.51341229,68946.0,68945.0,0.004]
[1729483515904,0.51341222,68946.0,68945.0,0.004]
[1729483516999,0.56545673,68946.0,68945.0,0.004]
[1729483517301,0.72513905,68946.0,68945.0,0.004]
[1729483518400,0.72513909,68946.0,68945.0,0.004]
[1729483518705,0.51341226,68946.0,68945.0,0.004]
[1729483520015,0.51341226,68946.0,68945.0,0.04734985]
[1729483520016,0.433338,68946.0,68945.0,0.04734985]
[1729483528008,0.433338,68946.0,68945.0,0.004]
[1729483533917,0.433338,68946.0,68945.0,0.04739118]
[1729483534216,0.433338,68946.0,68945.0,0.004]
[1729483534408,0.072541,68943.0,68940.0,0.04339111]
[1729483534610,0.433338,68946.0,68940.0,0.04339111]
[1729483534611,0.072544,68941.0,68940.0,0.04339111]
[1729483534814,0.072544,68941.0,68939.0,0.04339111]
[1729483535115,0.072551,68934.0,68928.0,0.135157]
[1729483535417,0.03553745,68933.0,68928.0,0.16178831]
[1729483535612,0.03553745,68932.0,68928.0,0.16178831]
[1729483535812,0.03553745,68931.0,68928.0,0.16178831]
[1729483536017,0.03553745,68930.0,68928.0,0.16178831]
[1729483536315,0.08008237,68929.0,68928.0,0.08923131]
[1729483536618,0.08008237,68929.0,68928.0,0.09723131]
[1729483536922,0.08008237,68929.0,68928.0,0.10723131]
[1729483537308,0.08008237,68929.0,68928.0,0.09723131]
[1729483537617,0.08108237,68929.0,68928.0,0.10723131]
[1729483538417,0.08108237,68929.0,68928.0,0.10423131]
[1729483539121,0.03653774,68929.0,68928.0,0.10423131]
[1729483539321,0.03753774,68929.0,68928.0,0.10423131]
[1729483541714,0.39833774,68929.0,68928.0,0.10423131]
[1729483542015,0.32648907,68929.0,68928.0,0.10423131]
[1729483542618,0.32648907,68929.0,68928.0,0.28702796]
[1729483542819,0.32648907,68929.0,68928.0,0.176426]
[1729483543120,0.32648907,68929.0,68928.0,0.10423131]
[1729483550221,0.072555,68930.0,68928.0,0.10423131]
[1729483552119,0.073555,68930.0,68928.0,0.10723131]
[1729483553221,0.074555,68930.0,68928.0,0.10623131]
[1729483557731,0.074555,68930.0,68928.0,0.07453131]
[1729483557917,0.074555,68930.0,68928.0,0.04363131]
[1729483558328,0.074555,68930.0,68928.0,0.04263131]
[1729483559131,0.074555,68930.0,68928.0,0.114826]
[1729483559430,0.074555,68930.0,68928.0,0.04163131]
[1729483560221,0.074555,68930.0,68928.0,0.113826]
[1729483561326,0.074555,68930.0,68928.0,0.08719469]
[1729483561528,0.4555,68929.0,68928.0,0.07283908]
[1729483561735,0.4555,68929.0,68928.0,0.015]
[1729483561933,0.4555,68929.0,68928.0,0.05838779]
[1729483562226,0.4555,68929.0,68928.0,0.05838627]
[1729483562624,0.4555,68929.0,68928.0,0.008]
[1729483562924,0.4575,68929.0,68928.0,0.015]
[1729483564222,0.4575,68929.0,68928.0,0.05838936]
[1729483565029,0.49304628,68929.0,68928.0,0.015]
[1729483565436,0.072565,68921.0,68914.0,0.00217645]
[1729483565625,0.3608,68918.0,68914.0,0.00217645]
[1729483566525,0.433368,68918.0,68914.0,0.00717645]
[1729483566934,0.433368,68918.0,68914.0,0.01417645]
[1729483567239,0.433368,68918.0,68914.0,0.03974013]
[1729483567441,0.433368,68918.0,68914.0,0.01417645]
[1729483568629,0.434368,68918.0,68914.0,0.00717645]
[1729483568823,0.434368,68918.0,68914.0,0.02836243]
[1729483569027,0.435368,68918.0,68914.0,0.02836243]
[1729483570643,0.3628,68918.0,68914.0,0.02836243]
[1729483570937,0.3628,68918.0,68916.0,0.07257]
[1729483572136,0.001,68918.0,68917.0,0.24497419]
[1729483572338,0.002,68918.0,68917.0,0.24497419]
[1729483578147,0.002,68918.0,68917.0,0.24419803]
[1729483579234,0.002,68918.0,68917.0,0.11061195]
[1729483580649,0.002,68918.0,68917.0,0.19729875]
[1729483582439,0.002,68918.0,68917.0,0.11061195]
[1729483582745,0.001,68918.0,68917.0,0.11061195]
[1729483582947,0.002,68918.0,68917.0,0.11061529]
[1729483587053,0.072567,68919.0,68917.0,0.11061529]
[1729483587355,0.072567,68919.0,68914.0,0.02618598]
[1729483587645,0.072567,68919.0,68910.0,0.163876]
[1729483588453,0.072568,68918.0,68910.0,0.163876]
[1729483588645,0.072568,68918.0,68910.0,0.19056422]
[1729483589749,0.073568,68918.0,68910.0,0.19056422]
[1729483591939,0.074568,68918.0,68917.0,0.001]
[1729483592657,0.073568,68918.0,68910.0,0.19056422]
[1729483592956,0.074568,68918.0,68910.0,0.19156422]
[1729483593669,0.074568,68918.0,68917.0,0.001]
[1729483594152,0.074568,68918.0,68917.0,0.19830194]
[1729483594362,0.074568,68918.0,68917.0,0.19930194]
[1729483595455,0.074568,68918.0,68917.0,0.11261514]
[1729483595654,0.074568,68918.0,68917.0,0.19846468]
[1729483596650,0.074568,68918.0,68917.0,0.19946468]
[1729483597049,0.074568,68918.0,68917.0,0.11261514]
[1729483599953,0.074568,68918.0,68917.0,0.19946468]
[1729483600163,0.074568,68918.0,68917.0,0.11261514]
[1729483600562,0.074568,68918.0,68917.0,0.19946719]
[1729483601655,0.074568,68918.0,68917.0,0.1994676]
[1729483606959,0.074568,68918.0,68917.0,0.11261555]
[1729483608960,0.074568,68918.0,68917.0,0.1994676]
[1729483609162,0.074568,68918.0,68917.0,0.002]
[1729483616971,0.11011375,68918.0,68917.0,0.002]
[1729483617272,0.074568,68918.0,68917.0,0.24660973]
[1729483617473,0.074568,68918.0,68917.0,0.1126151]
[1729483617668,0.074568,68918.0,68917.0,0.24658441]
[1729483618073,0.074568,68918.0,68917.0,0.1126151]
[1729483618466,0.002,68918.0,68917.0,0.1126151]
[1729483618667,0.002,68918.0,68917.0,0.24661027]
[1729483619366,0.002,68918.0,68917.0,0.31882716]
[1729483619562,0.002,68918.0,68917.0,0.31885925]
[1729483624274,0.002,68918.0,68917.0,0.074569]
[1729483624477,0.002,68918.0,68917.0,0.002]
[1729483625066,0.0375445,68918.0,68917.0,0.002]
[1729483625271,0.002,68918.0,68917.0,0.002]
[1729483632275,0.38786298,68927.0,68917.0,0.11261247]